[Event "Eurasia Open Cup 2019"]
[Site "Ekaterinburg"]
[Date "2019.08.05"]
[Round "5.32"]
[White "Bublei, Pavel"]
[Black "Eliseev, Mikhail"]
[Result "1-0"]
[ECO "E11"]
[WhiteElo "2353"]
[BlackElo "2173"]
[Annotator "NA"]
[PlyCount "121"]
[EventDate "2019.07.31"]
[EventType "swiss"]
[EventCountry "RUS"]
[SourceTitle "playchess.com"]
[Source "ChessBase"]
[SourceQuality "1"]
[TimeControl "5400+30"]

1. d4 {[%emt 0:08:39]} Nf6 {[%emt 0:00:09]} 2. c4 {[%emt 0:00:17]} e6 {[%emt 0:00:10]} 3. Nf3 {[%emt 0:01:03]} Bb4+ {[%emt 0:00:00]} 4. Nbd2 {[%emt 0:01:18]} O-O {[%emt 0:00:42]} 5. a3 {[%emt 0:02:02]} Be7 {[%emt 0:02:03]} 6. e4 {[%emt 0:01:36]} d6 {[%emt 0:00:16]} 7. Bd3 {[%emt 0:01:15]} a5 {[%emt 0:00:22]} 8. O-O {[%emt 0:02:47]} Nc6 {[%emt 0:00:06]} 9. b3 {[%emt 0:01:44]} e5 {[%emt 0:01:11]} 10. Bb2 {[%emt 0:00:19]} Re8 {[%emt 0:02:04]} 11. Re1 {[%emt 0:04:52]} g6 {[%emt 0:01:28]} 12. d5 {[%emt 0:03:54]} Nb8 {[%emt 0:00:12]} 13. c5 {[%emt 0:00:00]} Nh5 {[%emt 0:04:05]} 14. Bf1 {[%emt 0:03:52]} Na6 {[%emt 0:03:53]} 15. b4 {[%emt 0:00:24]} Bg4 {[%emt 0:02:46]} 16. Qb3 {[%emt 0:02:14]} Bf8 {[%emt 0:10:06]} 17. Nc4 {[%emt 0:38:24]} axb4 {[%emt 0:12:52]} 18. axb4 {[%emt 0:00:09]} Bxf3 {[%emt 0:00:48]} 19. Qxf3 {[%emt 0:00:04]} Nxb4 {[%emt 0:00:00]} 20. Rxa8 {[%emt 0:00:34]} Qxa8 {[%emt 0:00:00]} 21. cxd6 {[%emt 0:00:00]} cxd6 {[%emt 0:00:14]} 22. Qb3 {[%emt 0:10:56]} Na6 {[%emt 0:03:41]} 23. Ba3 {[%emt 0:00:04]} Rd8 {[%emt 0:15:56]} 24. Qb6 {[%emt 0:01:17]} Qb8 {[%emt 0:11:28]} 25. Na5 {[%emt 0:00:57]} Qc7 {[%emt 0:00:27]} 26. Rb1 {[%emt 0:06:11]} Nf6 {[%emt 0:05:38]} 27. Nxb7 {[%emt 0:01:05]} Ra8 {[%emt 0:06:21]} 28. Bxa6 {[%emt 0:02:07]} Qxb6 {[%emt 0:00:37]} 29. Rxb6 {[%emt 0:00:38]} Nd7 {[%emt 0:00:04]} 30. Rc6 {[%emt 0:03:09]} Nb8 {[%emt 0:00:00]} 31. Rc3 {[%emt 0:01:39]} Rxa6 {[%emt 0:01:10]} 32. g3 {[%emt 0:00:05]} Rb6 {[%emt 0:00:41]} 33. Na5 {[%emt 0:01:26]} Kg7 {[%emt 0:01:23]} 34. Kg2 {[%emt 0:00:35]} Ra6 {[%emt 0:00:51]} 35. Bb4 {[%emt 0:00:27]} Rb6 {[%emt 0:00:18]} 36. Ba3 {[%emt 0:01:00]} Ra6 {[%emt 0:00:06]} 37. Nb7 {[%emt 0:00:03]} Rb6 {[%emt 0:01:52]} 38. Nd8 {[%emt 0:00:03]} Ra6 {[%emt 0:00:54]} 39. Rc8 {[%emt 0:01:17]} Rxa3 {[%emt 0:04:12]} 40. Rxb8 {[%emt 0:00:04]} Ra7 {[%emt 0:01:13]} 41. h4 {[%emt 0:00:50]} h5 {[%emt 0:00:23]} 42. Nc6 {[%emt 0:00:06]} Rd7 {[%emt 0:00:11]} 43. f4 {[%emt 0:00:47]} exf4 {[%emt 0:05:52]} 44. gxf4 {[%emt 0:00:32]} Be7 {[%emt 0:00:10]} 45. Nxe7 {[%emt 0:00:26]} Rxe7 {[%emt 0:00:00]} 46. e5 {[%emt 0:00:07]} Rd7 {[%emt 0:00:59]} 47. Rb5 {[%emt 0:00:51]} Kf8 {[%emt 0:01:39]} 48. Kf3 {[%emt 0:00:09]} Ke7 {[%emt 0:00:09]} 49. Ke4 {[%emt 0:00:14]} Ra7 {[%emt 0:00:45]} 50. exd6+ {[%emt 0:00:19]} Kxd6 {[%emt 0:00:00]} 51. Rb6+ {[%emt 0:00:33]} Kd7 {[%emt 0:02:32]} 52. Ke5 {[%emt 0:00:00]} Ke7 {[%emt 0:00:33]} 53. Rc6 {[%emt 0:00:45]} Kd7 {[%emt 0:01:08]} 54. Rd6+ {[%emt 0:00:23]} Ke7 {[%emt 0:00:15]} 55. Rb6 {[%emt 0:00:00]} Kd7 {[%emt 0:00:07]} 56. Rc6 {[%emt 0:01:27]} Ke7 {[%emt 0:00:48]} 57. Rc7+ {[%emt 0:00:10]} Rxc7 {[%emt 0:00:45]} 58. d6+ {[%emt 0:00:02]} Kd7 {[%emt 0:00:00]} 59. dxc7 {[%emt 0:00:05]} Kxc7 {[%emt 0:00:00]} 60. Kf6 {[%emt 0:00:03]} Kd6 {[%emt 0:01:43]} 61. Kxf7 {[%emt 0:00:14]} 1-0

[Event "Eurasia Open Cup 2019"]
[Site "Ekaterinburg"]
[Date "2019.08.05"]
[Round "5.33"]
[White "Safin, Robert"]
[Black "Dilmukhametov, Artur"]
[Result "1/2-1/2"]
[ECO "E11"]
[WhiteElo "2188"]
[BlackElo "2346"]
[Annotator "NA"]
[PlyCount "57"]
[EventDate "2019.07.31"]
[EventType "swiss"]
[EventCountry "RUS"]
[SourceTitle "playchess.com"]
[Source "ChessBase"]
[SourceQuality "1"]
[TimeControl "5400+30"]

1. d4 {[%emt 0:00:00]} e6 {[%emt 0:05:23]} 2. c4 {[%emt 0:00:00]} Nf6 {[%emt 0:00:19]} 3. g3 {[%emt 0:00:09]} d5 {[%emt 0:00:33]} 4. Nf3 {[%emt 0:00:11]} Bb4+ {[%emt 0:00:52]} 5. Bd2 {[%emt 0:00:37]} a5 {[%emt 0:02:14]} 6. Qc2 {[%emt 0:07:59]} dxc4 {[%emt 0:07:11]} 7. Qxc4 {[%emt 0:01:26]} Nc6 {[%emt 0:01:54]} 8. Nc3 {[%emt 0:06:31]} O-O {[%emt 0:05:41]} 9. Bg2 {[%emt 0:00:07]} a4 {[%emt 0:16:15]} 10. O-O {[%emt 0:04:44]} Bd7 {[%emt 0:09:48]} 11. Ne5 {[%emt 0:04:55]} Bxc3 $14 {[%emt 0:16:08]} 12. Bxc3 {[%emt 0:04:00]} Nxe5 {[%emt 0:00:54]} 13. dxe5 {[%emt 0:00:09]} Nd5 {[%emt 0:00:00]} 14. Bxd5 {[%emt 0:24:52]} exd5 {[%emt 0:00:00]} 15. Qxd5 {[%emt 0:01:08]} Qc8 {[%emt 0:00:31]} 16. Qd2 {[%emt 0:11:10]} Bc6 {[%emt 0:03:27]} 17. Rad1 {[%emt 0:01:02]} Qe6 {[%emt 0:02:08]} 18. a3 {[%emt 0:00:21]} Rfe8 {[%emt 0:01:14]} 19. f3 {[%emt 0:01:40]} Qe7 {[%emt 0:03:26]} 20. e4 {[%emt 0:10:44]} Rad8 {[%emt 0:02:09]} 21. Qe3 {[%emt 0:03:38]} Qe6 {[%emt 0:00:50]} 22. Rd2 {[%emt 0:00:54]} Qb3 {[%emt 0:02:01]} 23. Rfd1 {[%emt 0:01:57]} Rxd2 {[%emt 0:01:08]} 24. Qxd2 {[%emt 0:00:06]} h6 {[%emt 0:00:32]} 25. Qd4 {[%emt 0:01:33]} Qe6 {[%emt 0:02:27]} 26. Kg2 {[%emt 0:03:22]} Qb3 {[%emt 0:01:32]} 27. Rd2 {[%emt 0:01:06]} Qe6 {[%emt 0:00:04]} 28. h3 {[%emt 0:01:25]} Re7 {[%emt 0:02:42]} 29. Kh2 {[%emt 0:01:01]} 1/2-1/2

[Event "Eurasia Open Cup 2019"]
[Site "Ekaterinburg"]
[Date "2019.08.05"]
[Round "5.34"]
[White "Ufimtsev, Egor"]
[Black "Pozin, Sergey"]
[Result "1-0"]
[ECO "E61"]
[WhiteElo "2148"]
[BlackElo "2299"]
[Annotator "NA"]
[PlyCount "81"]
[EventDate "2019.07.31"]
[EventType "swiss"]
[EventCountry "RUS"]
[SourceTitle "playchess.com"]
[Source "ChessBase"]
[SourceQuality "1"]
[TimeControl "5400+30"]

1. d4 {[%emt 0:00:00]} g6 {[%emt 0:07:05]} 2. Nf3 {[%emt 0:00:00]} Bg7 {[%emt 0:00:00]} 3. e3 {[%emt 0:00:00]} Nf6 {[%emt 0:00:28]} 4. Be2 {[%emt 0:00:05]} O-O {[%emt 0:00:00]} 5. O-O {[%emt 0:00:04]} d6 {[%emt 0:00:28]} 6. c4 {[%emt 0:00:17]} Nbd7 {[%emt 0:00:40]} 7. Nc3 {[%emt 0:00:08]} e5 {[%emt 0:00:06]} 8. Qc2 {[%emt 0:00:06]} Re8 {[%emt 0:00:50]} 9. b4 {[%emt 0:00:41]} Qe7 {[%emt 0:01:25]} 10. Bb2 {[%emt 0:00:00]} e4 {[%emt 0:01:22] E61: King's Indian: Early deviations for White, including Smyslov System} 11. Nd2 {[%emt 0:00:04]} h5 {[%emt 0:01:55]} 12. Rfc1 {[%emt 0:01:30]} (12. Rac1 h4 13. Rfd1 h3 14. g3 c6 15. Nb3 a6 16. d5 cxd5 17. Nxd5 Nxd5 18. Rxd5 Bxb2 19. Qxb2 {0-1 (41) Lalith,B (2537)-Yu,Y (2724) Caleta 2015}) 12... c6 {[%emt 0:01:46]} 13. a4 {[%emt 0:04:37]} Nf8 {[%emt 0:01:14]} 14. a5 {[%emt 0:00:08]} Bf5 {[%emt 0:02:37]} 15. a6 {[%emt 0:00:47]} b6 {[%emt 0:00:03]} 16. d5 $146 {[%emt 0:04:34]} ({Predecessor:} 16. c5 dxc5 17. bxc5 bxc5 18. dxc5 {0-1 (24) Steiner,B (2194)-Sergeev,V (2410) Prague 2018}) 16... c5 {[%emt 0:04:57]} 17. bxc5 {[%emt 0:00:13]} bxc5 {[%emt 0:00:25]} 18. Nb5 {[%emt 0:00:10]} N8h7 {[%emt 0:07:39]} 19. Nb3 {[%emt 0:03:09]} Ng4 {[%emt 0:02:37]} 20. Bxg7 {[%emt 0:03:40]} Kxg7 {[%emt 0:00:01]} 21. Na5 {[%emt 0:01:54]} Qh4 {[%emt 0:25:35]} 22. Bxg4 {[%emt 0:02:29]} Bxg4 $18 {[%emt 0:00:35]} (22... hxg4 $142 23. Nxd6 Rh8 24. Qc3+ Nf6) 23. Nxd6 {[%emt 0:04:00]} Bf3 {[%emt 0:07:05]} 24. gxf3 {[%emt 0:07:24]} Ng5 {[%emt 0:02:53]} 25. Nxe8+ {[%emt 0:37:03]} Rxe8 {[%emt 0:00:02]} 26. f4 {[%emt 0:00:00]} Nf3+ {[%emt 0:02:36]} 27. Kf1 {[%emt 0:00:00]} Qg4 {[%emt 0:00:12]} 28. Qc3+ {[%emt 0:04:42]} Kg8 {[%emt 0:02:27]} 29. h3 {[%emt 0:00:40]} Qxh3+ {[%emt 0:00:18]} 30. Ke2 {[%emt 0:00:00]} Qg4 {[%emt 0:01:05]} 31. Rh1 {[%emt 0:00:05]} h4 {[%emt 0:11:32]} 32. Kd1 {[%emt 0:02:47]} Qg2 {[%emt 0:00:36]} 33. Kc2 {[%emt 0:00:03]} Qxf2+ {[%emt 0:00:55]} 34. Kb3 {[%emt 0:00:34]} Nd4+ {[%emt 0:05:35]} 35. exd4 {[%emt 0:03:51]} cxd4 {[%emt 0:00:04]} 36. Qe1 {[%emt 0:00:02]} Qf3+ {[%emt 0:01:01]} 37. Ka4 {[%emt 0:00:33]} h3 {[%emt 0:00:38]} 38. Qf1 {[%emt 0:01:30]} Qc3 {[%emt 0:00:49]} 39. Qxh3 {[%emt 0:00:16]} d3 {[%emt 0:00:05]} 40. Qh7+ {[%emt 0:00:00]} Kf8 {[%emt 0:00:00]} 41. Qh8+ {[%emt 0:00:00]} 1-0

[Event "Eurasia Open Cup 2019"]
[Site "Ekaterinburg"]
[Date "2019.08.05"]
[Round "5.35"]
[White "Averyanov, Grigori"]
[Black "Semenova, Elena"]
[Result "1-0"]
[ECO "A36"]
[WhiteElo "2131"]
[BlackElo "2286"]
[Annotator "NA"]
[PlyCount "101"]
[EventDate "2019.07.31"]
[EventType "swiss"]
[EventCountry "RUS"]
[SourceTitle "playchess.com"]
[Source "ChessBase"]
[SourceQuality "1"]
[TimeControl "5400+30"]

1. c4 {[%emt 0:00:00]} Nf6 {[%emt 0:01:56]} 2. Nc3 {[%emt 0:00:00]} c5 {[%emt 0:06:32]} 3. g3 {[%emt 0:00:00]} Nc6 {[%emt 0:01:39]} 4. Bg2 {[%emt 0:00:00]} d6 {[%emt 0:00:48]} 5. d3 {[%emt 0:01:34]} g6 {[%emt 0:00:42]} 6. e3 {[%emt 0:01:01]} Bg7 {[%emt 0:00:26]} 7. Nge2 {[%emt 0:00:06]} h5 {[%emt 0:05:46]} 8. h3 {[%emt 0:03:06]} Bd7 {[%emt 0:03:29]} 9. Rb1 {[%emt 0:04:14]} Qc8 {[%emt 0:10:45]} 10. Nf4 {[%emt 0:04:49]} O-O {[%emt 0:01:33]} 11. a3 {[%emt 0:00:24]} Ne8 {[%emt 0:10:03]} 12. Qc2 {[%emt 0:04:17]} Nc7 {[%emt 0:11:28]} 13. Bd2 {[%emt 0:04:40]} Rb8 $14 {[%emt 0:03:59]} 14. b4 {[%emt 0:19:57]} cxb4 {[%emt 0:07:30]} 15. axb4 {[%emt 0:00:03]} b5 {[%emt 0:02:05]} 16. cxb5 {[%emt 0:00:39]} Ne5 {[%emt 0:04:03]} 17. b6 {[%emt 0:16:14]} axb6 {[%emt 0:01:43]} 18. O-O {[%emt 0:06:08]} Nb5 {[%emt 0:01:57]} 19. Rbc1 {[%emt 0:02:35]} Qd8 {[%emt 0:03:07]} 20. Qb3 {[%emt 0:03:01]} Rc8 {[%emt 0:05:48]} 21. Nce2 {[%emt 0:03:43]} Kh7 {[%emt 0:12:48]} 22. d4 {[%emt 0:00:15]} Nc6 {[%emt 0:00:57]} 23. Rfd1 {[%emt 0:05:15]} e5 {[%emt 0:00:49]} 24. dxe5 {[%emt 0:01:08]} Nxe5 {[%emt 0:00:36]} 25. Be1 {[%emt 0:00:14]} Bc6 {[%emt 0:00:30]} 26. Bxc6 {[%emt 0:01:05]} Rxc6 {[%emt 0:00:14]} 27. Rxc6 {[%emt 0:00:15]} Nxc6 {[%emt 0:00:02]} 28. Qd5 {[%emt 0:01:50]} Nca7 {[%emt 0:00:26]} 29. Rc1 {[%emt 0:00:50]} Qd7 {[%emt 0:00:18]} 30. Kh2 {[%emt 0:00:48]} Re8 {[%emt 0:01:09]} 31. Qd3 {[%emt 0:00:51]} Re5 {[%emt 0:01:11]} 32. Nd5 {[%emt 0:02:01]} Qb7 {[%emt 0:00:33]} 33. Rd1 {[%emt 0:00:16]} Re8 {[%emt 0:00:53]} 34. Ng1 {[%emt 0:01:06]} Be5 {[%emt 0:00:07]} 35. Nf3 {[%emt 0:00:00]} Nc7 {[%emt 0:00:29]} 36. Nxe5 {[%emt 0:00:26]} Nxd5 {[%emt 0:00:21]} 37. Nc4 {[%emt 0:02:15]} Nf6 {[%emt 0:00:45]} 38. Nxd6 {[%emt 0:00:14]} Qe7 {[%emt 0:00:28]} 39. Nxe8 {[%emt 0:00:07]} Qxe8 {[%emt 0:00:39]} 40. Bc3 {[%emt 0:00:51]} Ne4 {[%emt 0:00:00]} 41. Qd4 {[%emt 0:00:07]} Nxc3 {[%emt 0:00:28]} 42. Qxc3 {[%emt 0:00:00]} Nc6 {[%emt 0:00:00]} 43. Qf6 {[%emt 0:01:31]} b5 {[%emt 0:00:00]} 44. h4 {[%emt 0:00:51]} Ne5 {[%emt 0:00:38]} 45. Kg1 {[%emt 0:02:40]} Ng4 {[%emt 0:00:06]} 46. Qf4 {[%emt 0:01:14]} Qe6 {[%emt 0:00:17]} 47. Rd8 {[%emt 0:00:43]} Qa2 {[%emt 0:00:47]} 48. Rd7 {[%emt 0:00:30]} Kg7 {[%emt 0:00:13]} 49. Qd4+ {[%emt 0:01:15]} Kh7 {[%emt 0:00:31]} 50. e4 {[%emt 0:00:23]} Qe6 {[%emt 0:00:02]} 51. Qd5 {[%emt 0:00:22]} 1-0

[Event "Eurasia Open Cup 2019"]
[Site "Ekaterinburg"]
[Date "2019.08.05"]
[Round "5.36"]
[White "Gabdrakhmanov, Azat"]
[Black "Garifullina, Leya"]
[Result "1-0"]
[ECO "A10"]
[WhiteElo "2111"]
[BlackElo "2268"]
[Annotator "ChessBase"]
[PlyCount "91"]
[EventDate "2019.07.31"]
[EventType "swiss"]
[EventCountry "RUS"]
[SourceTitle "playchess.com"]
[Source "ChessBase"]
[SourceQuality "1"]
[TimeControl "5400+30"]

1. c4 {[%emt 0:00:00]} b6 {[%emt 0:00:15]} 2. b3 {[%emt 0:00:14]} Bb7 {[%emt 0:00:30]} 3. Bb2 {[%emt 0:00:00]} Nf6 {[%emt 0:00:10]} 4. Nf3 {[%emt 0:00:50]} g6 {[%emt 0:00:40]} 5. d3 {[%emt 0:01:31]} Bg7 {[%emt 0:00:20]} 6. e4 {[%emt 0:00:20]} d6 {[%emt 0:00:21]} 7. g3 {[%emt 0:00:49]} O-O {[%emt 0:01:20]} 8. Bg2 {[%emt 0:00:05]} e5 {[%emt 0:00:25]} 9. O-O {[%emt 0:00:25]} c5 {[%emt 0:02:01]} 10. Nc3 {[%emt 0:00:29]} Nc6 {[%emt 0:00:15]} 11. Nd5 {[%emt 0:01:20]} Nxd5 {[%emt 0:02:50]} 12. exd5 {[%emt 0:00:50]} Ne7 {[%emt 0:00:38]} 13. Qd2 {[%emt 0:01:16]} h6 {[%emt 0:00:40]} 14. b4 {[%emt 0:01:26]} f5 {[%emt 0:01:15]} 15. bxc5 {[%emt 0:01:56]} bxc5 {[%emt 0:00:05]} 16. Rab1 {[%emt 0:00:05]} Bc8 {[%emt 0:00:10]} 17. Nxe5 {[%emt 0:03:56]} dxe5 {[%emt 0:01:51]} 18. d6 {[%emt 0:00:05]} Rb8 {[%emt 0:02:06]} 19. dxe7 {[%emt 0:00:05]} Qxe7 {[%emt 0:00:00]} 20. Ba3 {[%emt 0:00:30]} Rxb1 {[%emt 0:01:31]} 21. Rxb1 {[%emt 0:00:00]} Be6 {[%emt 0:01:31]} 22. Qe3 {[%emt 0:05:10]} Rc8 {[%emt 0:06:56]} 23. Rb7 {[%emt 0:06:54]} Qd6 {[%emt 0:03:59]} 24. Rxa7 {[%emt 0:12:06]} e4 {[%emt 0:04:54]} 25. Bf1 {[%emt 0:02:21]} g5 {[%emt 0:08:40]} 26. Rxg7+ {[%emt 0:02:47]} Kxg7 {[%emt 0:00:05]} 27. Bb2+ {[%emt 0:00:10]} Kf7 {[%emt 0:03:12]} 28. dxe4 {[%emt 0:00:30]} Qd1 {[%emt 0:03:47]} 29. Qc3 {[%emt 0:02:14]} Qd4 {[%emt 0:03:09]} 30. exf5 {[%emt 0:00:31]} Bxf5 {[%emt 0:00:10]} 31. Qf3 {[%emt 0:01:16]} Qe4 {[%emt 0:00:20]} 32. Qh5+ {[%emt 0:00:36]} Bg6 {[%emt 0:00:30]} 33. Qxh6 {[%emt 0:00:10]} Qb1 {[%emt 0:00:16]} 34. Qg7+ {[%emt 0:01:20]} Ke6 {[%emt 0:02:18]} 35. Qe5+ {[%emt 0:01:02]} Kf7 {[%emt 0:00:56]} 36. Qf6+ {[%emt 0:00:40]} Ke8 {[%emt 0:00:05]} 37. Qe6+ {[%emt 0:00:20]} Kd8 {[%emt 0:00:25]} 38. Bf6+ {[%emt 0:01:06]} Kc7 {[%emt 0:00:10]} 39. Be5+ {[%emt 0:00:15]} Kd8 {[%emt 0:01:31]} 40. Bd6 {[%emt 0:07:32]} Rc6 {[%emt 0:00:41]} 41. Be7+ {[%emt 0:00:15]} Kc7 {[%emt 0:00:11]} 42. Bd8+ {[%emt 0:00:20]} Kxd8 {[%emt 0:01:00]} 43. Qxc6 {[%emt 0:00:05]} Bf5 {[%emt 0:00:20]} 44. Qxc5 {[%emt 0:01:11]} Bh3 {[%emt 0:00:14]} 45. Qxg5+ {[%emt 0:00:59]} Kc7 {[%emt 0:00:05]} 46. Qg7+ {[%emt 0:00:25]} 1-0

[Event "Eurasia Open Cup 2019"]
[Site "Ekaterinburg"]
[Date "2019.08.05"]
[Round "5.37"]
[White "Matsenko, Andrei"]
[Black "Novikov, Evgenij"]
[Result "1/2-1/2"]
[ECO "A13"]
[WhiteElo "2293"]
[BlackElo "2164"]
[Annotator "NA"]
[PlyCount "86"]
[EventDate "2019.07.31"]
[EventType "swiss"]
[EventCountry "RUS"]
[SourceTitle "playchess.com"]
[Source "ChessBase"]
[SourceQuality "1"]
[TimeControl "5400+30"]

1. Nf3 {[%emt 0:01:03]} d5 {[%emt 0:00:00]} 2. e3 {[%emt 0:00:34]} Nf6 {[%emt 0:01:46]} 3. c4 {[%emt 0:00:10]} e6 {[%emt 0:01:13]} 4. b3 {[%emt 0:00:04]} Be7 {[%emt 0:00:46]} 5. Bb2 {[%emt 0:01:18]} c5 {[%emt 0:02:35]} 6. cxd5 {[%emt 0:00:43]} exd5 {[%emt 0:00:06]} 7. Bb5+ {[%emt 0:00:16] A13: English Opening: 1...e6} (7. d4 Nc6 8. dxc5 Bxc5 9. Be2 Bb4+ 10. Nbd2 Ne4 11. a3 Bc3 12. Qc2 Qf6 13. Bxc3 Nxc3 14. Bd3 Ne4 {0-1 (31) Bacrot,E (2684)-Alekseenko,K (2637) chess.com INT 2019}) 7... Bd7 {[%emt 0:03:27]} 8. Bxd7+ {[%emt 0:00:16]} Nbxd7 {[%emt 0:00:17]} 9. O-O {[%emt 0:00:09]} b5 {[%emt 0:01:30]} 10. Nc3 $146 {[%emt 0:03:44]} ({Predecessor:} 10. d4 c4 11. a4 a6 {½-½ (54) Sun,C (2034)-Nie,X (2280) Daqing 2018}) 10... a6 {[%emt 0:07:33]} 11. a4 {[%emt 0:04:29]} Rb8 {[%emt 0:04:38]} 12. axb5 {[%emt 0:01:05]} axb5 {[%emt 0:00:04]} 13. Qe2 {[%emt 0:00:39]} Qb6 {[%emt 0:09:37]} 14. Ra2 {[%emt 0:04:00]} O-O {[%emt 0:05:48]} 15. Rfa1 {[%emt 0:01:29]} b4 {[%emt 0:00:07]} 16. Nb1 {[%emt 0:02:53]} Rfc8 {[%emt 0:03:46]} 17. d3 {[%emt 0:01:30]} Qc6 {[%emt 0:04:22]} 18. Nbd2 {[%emt 0:05:09]} Ra8 {[%emt 0:00:35]} 19. e4 {[%emt 0:01:07]} d4 $11 {[%emt 0:05:02]} 20. Nc4 {[%emt 0:03:03]} Rxa2 {[%emt 0:00:00]} 21. Rxa2 {[%emt 0:00:33]} Ra8 {[%emt 0:00:00]} 22. Bc1 {[%emt 0:00:25]} Ra6 {[%emt 0:00:52]} 23. Qb2 {[%emt 0:04:31]} Qa8 {[%emt 0:00:36]} 24. Rxa6 {[%emt 0:00:04]} Qxa6 {[%emt 0:00:03]} 25. Bg5 {[%emt 0:01:01]} Bf8 {[%emt 0:03:05]} 26. g3 {[%emt 0:04:50]} Ne8 {[%emt 0:02:12]} 27. Bf4 {[%emt 0:02:33]} Be7 {[%emt 0:00:50]} 28. Kg2 {[%emt 0:01:58]} Bd8 {[%emt 0:00:15]} 29. Nce5 {[%emt 0:07:42]} Nxe5 {[%emt 0:02:49]} 30. Nxe5 {[%emt 0:01:04]} Bc7 {[%emt 0:00:19]} 31. Nc4 {[%emt 0:04:27]} Bxf4 {[%emt 0:00:06]} 32. gxf4 {[%emt 0:00:03]} Qg6+ {[%emt 0:00:07]} 33. Kf1 {[%emt 0:04:37]} Qh5 {[%emt 0:01:35]} 34. Qe2 {[%emt 0:02:50]} Qxh2 {[%emt 0:01:07]} 35. Qg4 {[%emt 0:00:00]} Qh6 {[%emt 0:08:23]} 36. Qc8 {[%emt 0:02:29]} Qe6 {[%emt 0:00:00]} 37. Qxc5 {[%emt 0:00:33]} Qh3+ {[%emt 0:00:13]} 38. Ke1 {[%emt 0:01:41]} Qxd3 {[%emt 0:00:00]} 39. Qe7 {[%emt 0:00:35]} Qc3+ {[%emt 0:03:17]} 40. Ke2 {[%emt 0:06:27]} Qc2+ {[%emt 0:00:10]} 41. Ke1 {[%emt 0:02:09]} Qc1+ {[%emt 0:10:35]} 42. Ke2 {[%emt 0:00:05]} Qc2+ {[%emt 0:00:00]} 43. Ke1 {[%emt 0:00:03]} Qc1+ {[%emt 0:00:00]} 1/2-1/2

[Event "Eurasia Open Cup 2019"]
[Site "Ekaterinburg"]
[Date "2019.08.05"]
[Round "5.38"]
[White "Kolomensky, Vladimir"]
[Black "Tunik, Gennady"]
[Result "0-1"]
[ECO "B46"]
[WhiteElo "2101"]
[BlackElo "2371"]
[Annotator "NA"]
[PlyCount "122"]
[EventDate "2019.07.31"]
[EventType "swiss"]
[EventCountry "RUS"]
[SourceTitle "playchess.com"]
[Source "ChessBase"]
[SourceQuality "1"]
[TimeControl "5400+30"]

1. e4 {[%emt 0:00:00]} c5 {[%emt 0:00:00]} 2. Nf3 {[%emt 0:00:00]} e6 {[%emt 0:00:01]} 3. d4 {[%emt 0:00:00]} cxd4 {[%emt 0:00:00]} 4. Nxd4 {[%emt 0:00:00]} Nc6 {[%emt 0:00:00]} 5. Nc3 {[%emt 0:00:00]} a6 {[%emt 0:00:54]} 6. Nxc6 {[%emt 0:00:29]} bxc6 {[%emt 0:00:00]} 7. Bd3 {[%emt 0:00:36]} Qc7 {[%emt 0:00:36]} 8. O-O {[%emt 0:00:06]} d5 {[%emt 0:00:00]} 9. Qe2 {[%emt 0:03:32]} Bb7 {[%emt 0:02:41]} 10. Bd2 {[%emt 0:34:22]} Nf6 {[%emt 0:01:20]} 11. Rfe1 {[%emt 0:06:42]} Be7 {[%emt 0:02:14]} 12. Rad1 {[%emt 0:24:52]} O-O $11 {[%emt 0:05:53]} 13. b3 {[%emt 0:03:38]} Rfe8 {[%emt 0:05:25]} 14. e5 {[%emt 0:09:45]} Nd7 {[%emt 0:00:21]} 15. Na4 {[%emt 0:00:32]} c5 {[%emt 0:04:31]} 16. c4 {[%emt 0:01:54]} d4 {[%emt 0:00:37]} 17. Nb2 {[%emt 0:00:55]} a5 {[%emt 0:00:29]} 18. Bf4 {[%emt 0:02:13]} Bf8 {[%emt 0:03:13]} 19. Qg4 {[%emt 0:02:24]} g6 {[%emt 0:03:33]} 20. h4 {[%emt 0:00:51]} Bg7 {[%emt 0:01:26]} 21. h5 {[%emt 0:02:43]} a4 {[%emt 0:01:35]} 22. hxg6 {[%emt 0:01:41]} fxg6 {[%emt 0:00:23]} 23. Nxa4 {[%emt 0:00:56]} Bc6 {[%emt 0:01:13]} 24. Bc2 {[%emt 0:00:14]} Bxa4 {[%emt 0:00:35]} 25. bxa4 {[%emt 0:00:02]} Nb6 {[%emt 0:00:18]} 26. Rd3 {[%emt 0:00:23]} Qf7 {[%emt 0:01:05]} 27. Rh3 {[%emt 0:01:10]} Bf8 {[%emt 0:06:05]} 28. Bb3 {[%emt 0:01:42]} Nxa4 {[%emt 0:01:12]} 29. Bd2 {[%emt 0:00:05]} Nb6 {[%emt 0:05:40]} 30. Re4 {[%emt 0:00:10]} Nd7 {[%emt 0:00:37]} 31. a4 {[%emt 0:01:34]} Qf5 {[%emt 0:09:04]} 32. Qe2 {[%emt 0:00:50]} Bg7 {[%emt 0:01:13]} 33. f4 {[%emt 0:01:02]} Reb8 {[%emt 0:00:31]} 34. a5 {[%emt 0:00:00]} Ra7 {[%emt 0:00:44]} 35. Ba4 {[%emt 0:00:37]} Rb2 {[%emt 0:00:31]} 36. Rd3 {[%emt 0:00:19]} Nf8 {[%emt 0:01:33]} 37. Bb5 {[%emt 0:00:24]} Rxa5 {[%emt 0:00:32]} 38. g4 {[%emt 0:00:44]} Ra1+ {[%emt 0:00:19]} 39. Kg2 {[%emt 0:00:13]} Qf7 {[%emt 0:00:06]} 40. Qf3 {[%emt 0:00:36]} Qe7 {[%emt 0:00:53]} 41. g5 {[%emt 0:00:29]} h6 {[%emt 0:02:56]} 42. Re2 {[%emt 0:00:04]} Qf7 {[%emt 0:01:38]} 43. Ra3 {[%emt 0:00:33]} Rxa3 {[%emt 0:00:30]} 44. Qxa3 {[%emt 0:00:02]} Rxd2 {[%emt 0:00:17]} 45. Rxd2 {[%emt 0:00:01]} Qxf4 {[%emt 0:00:37]} 46. Rf2 {[%emt 0:00:57]} Qxg5+ {[%emt 0:00:12]} 47. Kf1 {[%emt 0:00:26]} Qxe5 {[%emt 0:00:00]} 48. Bc6 {[%emt 0:01:09]} h5 {[%emt 0:03:01]} 49. Qf3 {[%emt 0:00:34]} Qf5 {[%emt 0:00:16]} 50. Qd1 {[%emt 0:00:12]} Qh3+ {[%emt 0:00:56]} 51. Bg2 {[%emt 0:00:23]} Qc3 {[%emt 0:00:00]} 52. Rc2 {[%emt 0:00:28]} Qg3 {[%emt 0:00:47]} 53. Rf2 {[%emt 0:01:00]} Nh7 {[%emt 0:00:41]} 54. Rf3 {[%emt 0:01:16]} Qe5 {[%emt 0:00:53]} 55. Qd3 {[%emt 0:00:00]} Ng5 {[%emt 0:01:58]} 56. Qxg6 {[%emt 0:00:29]} Nxf3 {[%emt 0:00:08]} 57. Bxf3 {[%emt 0:00:31]} h4 {[%emt 0:00:55]} 58. Kg2 {[%emt 0:00:31]} Qf5 {[%emt 0:01:16]} 59. Qe8+ {[%emt 0:00:47]} Kh7 {[%emt 0:00:21]} 60. Qc6 {[%emt 0:00:19]} Kh6 {[%emt 0:01:34]} 61. Bd5 {[%emt 0:00:35]} Qg6+ {[%emt 0:00:00]} 0-1